fUSD/lending_fUSD_20251108
["ID","MTS","AMOUNT","RATE_DAILY","PERIOD"]
[393389462,1762571449076,-151.0,0.00022,7]
[393389463,1762571449086,-664.260969,0.00022,7]
[393389464,1762571449099,-664.260969,0.00022,7]
[393389465,1762571449108,-664.260969,0.00022,7]
[393389466,1762571449118,-664.260969,0.00022,7]
[393389467,1762571449128,-151.0,0.00022,7]
[393389468,1762571449139,-151.0,0.00022,7]
[393389469,1762571449148,-151.0,0.00022,7]
[393389470,1762571449158,-151.0,0.00022,7]
[393389471,1762571449169,-151.0,0.00022,7]
[393389472,1762571449178,-198.0,0.00022,7]
[393389473,1762571449185,-216.561772,0.00022,7]
[393389474,1762571449194,-151.0,0.00022,7]
[393389475,1762571449204,-185.218701,0.00022,7]
[393389476,1762571449213,-185.218701,0.00022,7]
[393389477,1762571449223,-185.218701,0.00022,7]
[393389478,1762571449232,-185.218701,0.00022,7]
[393389479,1762571449242,-155.492687,0.00022,7]
[393389480,1762571449252,-155.412626,0.00022,7]
[393389481,1762571449261,-295.38846,0.00022,7]
[393389482,1762571449270,-151.0,0.00022,7]
[393389483,1762571449280,-151.0,0.00022,7]
[393389484,1762571449290,-151.0,0.00022,7]
[393389485,1762571449299,-163.0,0.00022,2]
[393389486,1762571449309,-459.0,0.00022,2]
[393389487,1762571449319,-151.0,0.00022,7]
[393389488,1762571449329,-151.0,0.00022,7]
[393389489,1762571449338,-151.0,0.00022,7]
[393389490,1762571449348,-151.0,0.00022,7]
[393389491,1762571449357,-169.741621,0.00022,7]
[393389492,1762571449368,-151.0,0.00022,7]
[393389493,1762571449377,-151.0,0.00022,7]
[393389494,1762571449388,-151.0,0.00022,7]
[393389495,1762571449397,-151.0,0.00022,7]
[393389496,1762571449408,-667.568738,0.00022,7]
[393389497,1762571449417,-151.0,0.00022,7]
[393389498,1762571449427,-667.568738,0.00022,7]
[393389499,1762571449437,-151.0,0.00022,7]
[393389500,1762571449447,-667.568738,0.00022,7]
[393389501,1762571449457,-259.416773,0.00022,7]
[393389502,1762571449467,-667.568738,0.00022,7]
[393389503,1762571449477,-160.719974,0.00022,7]
[393389504,1762571449487,-172.114768,0.00022,7]
[393389505,1762571449497,-164.0,0.00022,2]
[393389506,1762571449508,-151.0,0.00022,7]
[393389507,1762571449517,-185.711784,0.00022,7]
[393389508,1762571449527,-151.0,0.00022,7]
[393389509,1762571449537,-154.793135,0.00022,7]
[393389510,1762571449547,-151.0,0.00022,7]
[393389511,1762571449557,-168.604519,0.00022,7]
[393389512,1762571449567,-151.0,0.00022,7]
[393389513,1762571449577,-151.0,0.00022,7]
[393389514,1762571449587,-158.223595,0.00022,7]
[393389515,1762571449597,-151.0,0.00022,7]
[393389516,1762571449606,-184.318531,0.00022,7]
[393389517,1762571449617,-151.0,0.00022,7]
[393389518,1762571449627,-176.35275,0.00022,7]
[393389519,1762571449636,-151.0,0.00022,7]
[393389520,1762571449646,-176.35275,0.00022,7]
[393389521,1762571449655,-176.35275,0.00022,7]
[393389522,1762571449665,-843.65063,0.00022,2]
[393389523,1762571449675,-176.35275,0.00022,7]
[393389524,1762571449686,-151.0,0.00022,7]
[393389525,1762571449696,-151.0,0.00022,7]
[393389526,1762571449706,-151.0,0.00022,7]
[393389527,1762571449716,-268.857923,0.00022,7]
[393389528,1762571449727,-232.934296,0.00022,7]
[393389529,1762571449736,-151.0,0.00022,7]
[393389530,1762571449746,-268.857923,0.00022,7]
[393389531,1762571449757,-232.934296,0.00022,7]
[393389532,1762571449767,-268.857923,0.00022,7]
[393389533,1762571449777,-151.0,0.00022,7]
[393389534,1762571449788,-232.934296,0.00022,7]
[393389535,1762571449798,-151.0,0.00022,7]
[393389536,1762571449807,-232.934296,0.00022,7]
[393389537,1762571449817,-268.857923,0.00022,7]
[393389538,1762571449827,-163.619571,0.00022,7]
[393389539,1762571449836,-151.0,0.00022,7]
[393389540,1762571449846,-151.0,0.00022,7]
[393389541,1762571449855,-263.731008,0.00022,7]
[393389542,1762571449865,-151.0,0.00022,7]
[393389543,1762571449875,-1020.61032876,0.00022021,2]
[393389544,1762571449884,-1000.0,0.00022021,2]
[393389545,1762571449894,-353.17273902,0.00022055,2]
[393389546,1762571449903,-438.12098026,0.00022055,2]
[393389547,1762571449914,-489.8069685,0.000221,2]
[393389548,1762571449924,-238.0016999,0.0002211,2]
[393389549,1762571449934,-3292.0,0.00022171,2]
[393389550,1762571449944,-459.0,0.00022192,7]
[393389551,1762571449953,-150.0,0.00022333,2]
[393389552,1762571449963,-362.63468133,0.00022405,2]
[393389553,1762571449973,-168.741974,0.00022462,15]
[393389554,1762571449983,-178.808162,0.00022462,15]
[393389555,1762571449994,-35159.08642138,0.000225,2]
[393389556,1762571450006,-6109.39242528,0.00022513,2]
[393389557,1762571450016,-5000.0,0.00022513,2]
[393389558,1762571450025,-5587.56350371,0.00022513,2]
[393389559,1762571450035,-183.48,0.00022557,2]
[393389560,1762571450044,-927.63,0.00022562,2]
[393389561,1762571450055,-898.24,0.00022562,2]
[393389562,1762571450064,-332.92792874,0.00022568,2]
[393389563,1762571450074,-517.95567933,0.0002271,2]
[393389564,1762571450083,-227.08,0.0002271,2]
[393389565,1762571450096,-250.0,0.00022881,2]
[393389566,1762571450106,-19202.56589629,0.000229,2]
[393389567,1762571450116,-2000.0,0.000229,8]
[393389568,1762571450125,-628.25562574,0.00023,7]
[393389569,1762571450137,-435.52331328,0.00023,2]
[393389570,1762571450146,-997.68735176,0.00023,2]
[393389571,1762571450156,-199.0,0.00023,7]
[393389572,1762571450166,-163.0,0.00023014,7]
[393389573,1762571450176,-459.0,0.00023014,7]
[393389574,1762571450186,-165.0,0.00023014,7]
[393389575,1762571450195,-1000.0,0.00023051,2]
[393389576,1762571450205,-2560.26705146,0.000231,2]
[393389577,1762571450214,-51657.89405864,0.000232,2]
[393389578,1762571450224,-153.95,0.00023306,2]
[393389579,1762571450234,-11563.9880708,0.00023333,7]
[393389580,1762571450243,-478.09862864,0.000234,7]
[393389581,1762571450254,-350.0,0.00023429,2]
[393389582,1762571450264,-200.0,0.000235,2]
[393389583,1762571450274,-42789.71,0.000235,7]
[393389584,1762571450283,-168.741974,0.000235,5]
[393389585,1762571450298,-178.808162,0.000235,5]
[393389586,1762571450313,-151.0,0.000235,7]
[393389587,1762571450324,-151.0,0.000235,7]
[393389588,1762571450334,-1117.62,0.00023519,2]
[393389589,1762571450344,-227.08,0.00023656,2]
[393389590,1762571450353,-153.95,0.00023713,2]
[393389591,1762571450363,-1152.0,0.00023895,2]
[393389592,1762571450372,-450.0,0.00023977,2]
[393389593,1762571450382,-1029.79555358,0.00024,14]
[393389594,1762571450392,-3600.0,0.00024,2]
[393389595,1762571450401,-16048.0046882,0.00024,2]
[393389596,1762571450411,-1010.66587826,0.00024,2]
[393389597,1762571450420,-843.65063,0.00024,2]
[393389598,1762571450430,-153.94691885,0.00024119,2]
[393389599,1762571450440,-466.0,0.00024164,7]
[393389600,1762571450450,-2000.0,0.000242,2]
[393389601,1762571450459,-543.40399627,0.000242,2]
[393389602,1762571450469,-574.0,0.0002421,2]
[393389603,1762571450478,-1316.0,0.0002421,2]
[393389604,1762571450488,-607.0,0.0002421,2]
[393389605,1762571450498,-3424.0,0.0002421,2]
[393389606,1762571450510,-820.0,0.0002421,2]
[393389607,1762571450520,-1596.0,0.0002421,2]
[393389608,1762571450529,-1273.0,0.0002421,2]
[393389609,1762571450539,-812.0,0.0002421,2]
[393389610,1762571450549,-1188.0,0.0002421,2]
[393389611,1762571450559,-6477.0,0.0002421,2]
[393389612,1762571450569,-2142.0,0.0002421,2]
[393389613,1762571450578,-6660.0,0.0002421,2]
[393389614,1762571450588,-559.0,0.0002421,2]
[393389615,1762571450598,-417.56704257,0.0002421,2]
[393389616,1762571450607,-3658.97332196,0.0002421,2]
[393389617,1762571450618,-4609.0,0.00024343,2]
[393389618,1762571450627,-550.0,0.00024525,2]
[393389619,1762571450640,-162.14577741,0.0002455,15]
[393389620,1762571450650,-227.08,0.00024603,2]
[393389621,1762571450660,-591.38327274,0.0002465,2]
[393389622,1762571450670,-165.80535779,0.0002465,2]
[393389623,1762571450679,-1171.1,0.00024658,2]
[393389624,1762571450689,-151.0,0.00024658,7]
[393389625,1762571450699,-151.0,0.00024658,7]
[393389626,1762571450709,-151.0,0.00024658,7]
[393389627,1762571450719,-151.0,0.00024658,7]
[393389628,1762571450728,-151.0,0.00024658,7]
[393389629,1762571450739,-151.0,0.00024658,7]
[393389630,1762571450749,-151.000018,0.00024658,7]
[393389631,1762571450761,-1000.0,0.00024658,2]
[393389632,1762571450770,-362.63468133,0.00024719,2]
[393389633,1762571450780,-477.99034883,0.000248,3]
[393389634,1762571450791,-165.42013813,0.000248,30]
[393389635,1762571450800,-151.0,0.000248,7]
[393389636,1762571450810,-151.0,0.000248,7]
[393389637,1762571450819,-151.0,0.000248,7]
[393389638,1762571450829,-151.0,0.000248,7]
[393389639,1762571450839,-151.0,0.000248,7]
[393389640,1762571450849,-151.0,0.000248,7]
[393389641,1762571450859,-151.0,0.000248,7]
[393389642,1762571450869,-151.0,0.000248,7]
[393389643,1762571450878,-151.0,0.000248,7]
[393389644,1762571450888,-151.0,0.000248,7]
[393389645,1762571450897,-202.48479,0.000248,7]
[393389646,1762571450907,-151.0,0.000248,7]
[393389647,1762571450917,-151.0,0.000248,7]
[393389648,1762571450927,-151.0,0.000248,7]
[393389649,1762571450936,-197.883318,0.000248,7]
[393389650,1762571450946,-151.0,0.000248,7]
[393389651,1762571450955,-151.0,0.000248,7]
[393389652,1762571450965,-159.463608,0.000248,7]
[393389653,1762571450974,-664.260969,0.000248,7]
[393389654,1762571450984,-664.260969,0.000248,7]
[393389655,1762571450993,-664.260969,0.000248,7]
[393389656,1762571451004,-664.260969,0.000248,7]
[393389657,1762571451013,-163.469832,0.000248,7]
[393389658,1762571451023,-185.218701,0.000248,7]
[393389659,1762571451033,-185.218701,0.000248,7]
[393389660,1762571451042,-185.218701,0.000248,7]
[393389661,1762571451051,-185.218701,0.000248,7]
[393389662,1762571451061,-160.055141,0.000248,7]
[393389663,1762571451071,-151.0,0.000248,7]
[393389664,1762571451080,-154.808788,0.000248,7]
[393389665,1762571451090,-151.0,0.000248,7]
[393389666,1762571451103,-151.0,0.000248,7]
[393389667,1762571451112,-151.0,0.000248,7]
[393389668,1762571451122,-151.0,0.000248,7]
[393389669,1762571451132,-157873.73085407,0.000248,3]
[393389670,1762571451492,-1015.33152322,0.000248,3]
[393389671,1762571451506,-850.80979446,0.000248,3]
[393389672,1762571451518,-334.44623403,0.000248,3]
[393389673,1762571451554,-28247.56002,0.000248,3]
[393389674,1762571451571,-37394.24412659,0.000248,3]
[393389675,1762571451588,-263.731008,0.00022,7]
[393389676,1762571451598,-365542.57966621,0.000248,3]
[393389677,1762571451753,-151.0,0.00019,2]
[393389678,1762571451763,-151.0,0.00019,2]
[393389679,1762571451773,-185.16056905,0.00019,2]
[393389680,1762571451785,-78.57043895,0.00019,2]
[393389681,1762571451795,-151.0,0.0002,7]
[393389682,1762571451805,-151.0,0.0002,7]
[393389683,1762571451815,-263.731008,0.0002,7]
[393389684,1762571451825,-549.24,0.00020597,2]
[393389685,1762571451835,-263.731008,0.00022,7]
[393389686,1762571451845,-1199.78372238,0.000248,3]
[393389687,1762571451856,-466.98874203,0.000248,3]
[393389688,1762571451934,-263.731008,0.00019,2]
[393389689,1762571451943,-82.75745689,0.00019,2]
[393389690,1762571451961,-68.24254311,0.00019,2]
[393389691,1762571451971,-151.0,0.00019,2]
[393389692,1762571451980,-151.0,0.00019,2]
[393389693,1762571451990,-263.731008,0.0002,7]
[393389694,1762571452000,-151.0,0.0002,7]
[393389695,1762571452011,-263.731008,0.00022,7]
[393389696,1762571452021,-151.0,0.00022,7]
[393389697,1762571452031,-1370.51118094,0.000248,3]
[393389698,1762571452043,-1900.16864259,0.000248,3]
[393389699,1762571452054,-2699.11955112,0.000248,3]
[393389700,1762571452066,-297.95427911,0.000248,3]
[393389701,1762571452079,-4275.94232325,0.000248,3]
[393389702,1762571452092,-151.0,0.000248,7]
[393389703,1762571452103,-151.0,0.000248,7]
[393389704,1762571452113,-151.0,0.000248,7]
[393389705,1762571452124,-503.057705,0.000248,7]
[393389706,1762571452139,-164.511033,0.000248,7]
[393389707,1762571452149,-151.0,0.000248,7]
[393389708,1762571452159,-78.48898462,0.000248,7]
[393389709,1762571659477,500.0,0.00039105,120]
[393389710,1762571659699,500.0,0.00039105,120]
[393389711,1762571659955,189.74623906,0.00039105,120]
[393389712,1762571953207,183.49,0.00025209,120]
[393389714,1762572112308,175.8,0.00013402,2]
[393389715,1762572204463,500.0,0.00039075,120]
[393389716,1762572204725,535.96062056,0.00039075,120]
[393389728,1762572420609,-193.38639401,0.000162,5]
[393389729,1762572422296,-170.17901379,0.000162,5]
[393389730,1762572424183,-288.78350732,0.000162,5]
[393389731,1762572427878,-300.0,0.000162,5]
[393389733,1762572430469,-187.11921967,0.000162,5]
[393389734,1762572433113,-151.848,0.000162,5]
[393389735,1762572434605,-673.64916887,0.000162,5]
[393389736,1762572450580,-202.234572,0.000162,5]
[393389737,1762572452053,-321.12837123,0.000162,5]
[393389744,1762572517110,9824.21,0.00015,3]
[393389745,1762572517133,10000.01,0.00015,3]
[393389746,1762572517158,10000.01,0.00015,3]
[393389747,1762572517182,10000.01,0.00015,3]
[393389748,1762572517204,10000.01,0.00015,3]
[393389749,1762572517227,10000.01,0.00015,3]
[393389750,1762572517253,6598.38207107,0.00015,3]
[393389751,1762572517275,6598.38207107,0.00015,3]
[393389752,1762572517297,6598.38207107,0.00015,3]
[393389753,1762572517319,6598.38207107,0.00015,3]
[393389754,1762572517342,6598.38207107,0.00015,3]
[393389755,1762572517364,6598.38207107,0.00015,3]
[393389756,1762572517386,6598.38207107,0.00015,3]
[393389757,1762572517408,6598.38207107,0.00015,3]
[393389758,1762572517430,5190.17899098,0.00015,3]
[393389760,1762572605650,39037.32519579,0.00039076,30]
[393389761,1762572615589,-177.4,0.00015538,2]
[393389762,1762572615613,-203.83496114,0.0001581,2]
[393389763,1762572631824,39037.325,0.00039076,30]
[393389778,1762572632262,-151.0,0.00015765,2]
[393389779,1762572632273,-122.5892517,0.0001581,2]
[393389780,1762572632284,-319.5237502,0.00015905,2]
[393389781,1762572632294,-151.0,0.00016005,2]
[393389782,1762572632305,-177.4,0.00016083,2]
[393389783,1762572632314,-155.10328179,0.00016144,2]
[393389784,1762572632324,-738.81079823,0.000162,5]
[393389785,1762572632424,-1903.8262241,0.000162,5]
[393389786,1762572632436,-151.0,0.00016244,2]
[393389787,1762572632448,-250.0,0.00016262,2]
[393389788,1762572632459,-195.0,0.00016324,2]
[393389789,1762572632469,-343.5309302,0.00016378,2]
[393389790,1762572632480,-195.0,0.00016448,2]
[393389791,1762572632491,-151.0,0.0001652,2]
[393389792,1762572632503,-195.0,0.00016571,2]
[393389793,1762572632514,-177.4,0.00016628,2]
[393389794,1762572632526,-1200.0,0.00016695,2]
[393389795,1762572632541,-200.0,0.00016696,2]
[393389797,1762572632552,-215.9259,0.00016706,2]
[393389798,1762572632563,-130.38682108,0.00016806,2]
[393389799,1762572632583,-53.10317892,0.00016806,2]
[393389800,1762572632594,-155.10328177,0.00016822,2]
[393389801,1762572632605,-300.0,0.00016926,2]
[393389803,1762572632615,-297.43753931,0.00016926,2]
[393389805,1762572632628,-2.56246069,0.00016926,2]
[393389807,1762572632639,-655.63636979,0.00016927,2]
[393389810,1762572632652,-1180.34296121,0.00016927,2]
[393389812,1762572632664,-920.07430966,0.00017091,2]
[393389814,1762572632676,-344.23181348,0.00017091,2]
[393389817,1762572632690,-332.092411,0.00017091,2]
[393389819,1762572632700,-121.36001496,0.00017091,2]
[393389821,1762572632713,-178.63998504,0.00017091,2]
[393389823,1762572632722,-166.66,0.0001714,2]
[393389825,1762572632732,-109.46497556,0.00017173,2]
[393389828,1762572632749,-67.93502444,0.00017173,2]
[393389830,1762572632762,-1300.0,0.000173,6]
[393389831,1762572632772,-1274.0,0.00017322,2]
[393389832,1762572632782,-1853.3953009,0.000174,6]
[393389988,1762572638199,-319.52375011,0.00015914,2]
[393389989,1762572638211,-746.6046991,0.000174,6]
[393389990,1762572638221,-168.0,0.00017409,2]
[393389991,1762572638231,-1274.0,0.00017463,2]
[393389992,1762572638241,-1000.0,0.00017483,2]
[393389993,1762572638251,-1000.0,0.00017483,2]
[393389994,1762572638262,-1000.0,0.00017483,2]
[393389995,1762572638272,-1000.0,0.00017483,2]
[393389996,1762572638282,-1000.0,0.00017483,2]
[393389997,1762572638292,-1000.0,0.00017483,2]
[393389998,1762572638302,-589.761,0.00017483,2]
[393389999,1762572638312,-155.10328177,0.00017499,2]
[393390000,1762572638321,-500.0,0.000175,2]
[393390001,1762572638332,-500.0,0.000175,2]
[393390002,1762572638341,-500.0,0.000175,2]
[393390003,1762572638353,-500.0,0.000175,2]
[393390004,1762572638363,-500.0,0.000175,2]
[393390005,1762572638373,-500.0,0.000175,2]
[393390006,1762572638383,-500.0,0.000175,2]
[393390007,1762572638393,-500.0,0.000175,2]
[393390008,1762572638403,-500.0,0.000175,2]
[393390009,1762572638413,-500.0,0.000175,2]
[393390010,1762572638423,-500.0,0.000175,2]
[393390011,1762572638432,-327.80882013,0.000175,2]
[393390012,1762572638443,-751.18,0.000175,2]
[393390013,1762572638453,-2500.0,0.000175,2]
[393390014,1762572638463,-1649.9964,0.000175,2]
[393390015,1762572638474,-400.01255146,0.000175,2]
[393390016,1762572638485,-4000.0,0.000175,6]
[393390017,1762572638495,-1274.0,0.00017522,2]
[393390018,1762572638505,-894.88,0.00017532,2]
[393390019,1762572638517,-501.94551867,0.00017573,2]
[393390020,1762572638528,-502.07503248,0.00017573,2]
[393390022,1762572638541,-500.0,0.00017573,2]
[393390024,1762572638551,-500.0,0.00017573,2]
[393390026,1762572638562,-500.91506989,0.00017573,2]
[393390028,1762572638571,-500.0,0.00017573,2]
[393390030,1762572638580,-500.0,0.00017573,2]
[393390032,1762572638590,-151.0,0.00017589,2]
[393390034,1762572638600,-151.0,0.00017589,2]
[393390036,1762572638614,-151.0,0.00017589,2]
[393390038,1762572638624,-151.0,0.00017589,2]
[393390040,1762572638634,-151.0,0.00017589,2]
[393390042,1762572638644,-151.0,0.00017589,2]
[393390044,1762572638654,-151.0,0.00017589,2]
[393390046,1762572638663,-151.0,0.00017589,2]
[393390048,1762572638674,-151.0,0.00017589,2]
[393390050,1762572638683,-151.0,0.00017589,2]
[393390052,1762572638693,-151.0,0.00017589,2]
[393390054,1762572638703,-151.0,0.00017589,2]
[393390056,1762572638712,-151.0,0.00017589,2]
[393390058,1762572638722,-151.0,0.00017589,2]
[393390060,1762572638732,-151.0,0.00017589,2]
[393390062,1762572638741,-151.0,0.00017589,2]
[393390064,1762572638750,-151.0,0.00017589,2]
[393390066,1762572638761,-151.0,0.00017589,2]
[393390067,1762572638773,-239.82142476,0.00017589,2]
[393390068,1762572638783,-500.0,0.00017599,2]
[393390069,1762572638793,-508.65730937,0.00017599,2]
[393390070,1762572638803,-500.0,0.00017599,2]
[393390071,1762572638814,-500.0,0.00017599,2]
[393390072,1762572638825,-500.0,0.00017599,2]
[393390073,1762572638835,-500.0,0.00017599,2]
[393390074,1762572638847,-500.0,0.00017599,2]
[393390075,1762572638859,-500.0,0.00017599,2]
[393390076,1762572638870,-500.0,0.00017599,2]
[393390077,1762572638881,-500.0,0.00017599,2]
[393390078,1762572638892,-500.0,0.00017599,2]
[393390079,1762572638902,-500.0,0.00017599,2]
[393390080,1762572638912,-500.0,0.00017599,2]
[393390081,1762572638922,-500.0,0.00017599,2]
[393390082,1762572638932,-500.0,0.00017599,2]
[393390083,1762572638943,-500.0,0.00017599,2]
[393390084,1762572638955,-500.0,0.00017599,2]
[393390085,1762572638965,-500.0,0.00017599,2]
[393390086,1762572638975,-452.75409476,0.00017599,2]
[393390087,1762572638986,-500.0,0.00017599,2]
[393390088,1762572638997,-500.0,0.00017599,2]
[393390089,1762572639008,-500.0,0.00017599,2]
[393390090,1762572639018,-229.91740568,0.00017599,2]
[393390091,1762572639028,-218.28701696,0.00017599,2]
[393390092,1762572639040,-500.0,0.00017599,2]
[393390093,1762572639051,-500.0,0.00017599,2]
[393390094,1762572639061,-555.00046921,0.00017599,2]
[393390095,1762572639071,-385.48485231,0.00017599,2]
[393390096,1762572639081,-500.0,0.00017599,2]
[393390097,1762572639092,-500.0,0.00017599,2]
[393390098,1762572639102,-500.0,0.00017599,2]
[393390099,1762572639112,-500.0,0.00017599,2]
[393390100,1762572639122,-286.65313877,0.00017599,2]
[393390101,1762572639131,-504.71242223,0.00017599,2]
[393390102,1762572639141,-500.0,0.00017599,2]
[393390103,1762572639152,-500.0,0.00017599,2]
[393390104,1762572639162,-250.0,0.00017599,2]
[393390105,1762572639172,-500.0,0.00017599,2]
[393390106,1762572639182,-500.0,0.00017599,2]
[393390107,1762572639192,-500.0,0.00017599,2]
[393390108,1762572639203,-500.0,0.00017599,2]
[393390109,1762572639214,-500.0,0.00017599,2]
[393390110,1762572639225,-500.0,0.00017599,2]
[393390111,1762572639235,-500.0,0.00017599,2]
[393390112,1762572639244,-500.0,0.00017599,2]
[393390113,1762572639254,-400.0,0.00017599,2]
[393390114,1762572639266,-217.75342035,0.00017599,2]
[393390115,1762572639276,-500.0,0.00017599,2]
[393390116,1762572639285,-163.59986189,0.00017599,2]
[393390117,1762572639295,-500.0,0.00017599,2]
[393390118,1762572639305,-500.0,0.00017599,2]
[393390119,1762572639315,-500.0,0.00017599,2]
[393390120,1762572639325,-500.0,0.00017599,2]
[393390121,1762572639335,-518.53426573,0.00017599,2]
[393390122,1762572639345,-500.0,0.00017599,2]
[393390123,1762572639355,-500.0,0.00017599,2]
[393390124,1762572639366,-500.0,0.00017599,2]
[393390125,1762572639375,-2904.4139,0.000176,2]
[393390126,1762572639385,-18208.416876,0.000176,2]
[393390127,1762572639405,-8008.10904577,0.000176,2]
[393390128,1762572639416,-301.0,0.000176,2]
[393390129,1762572639427,-393482.47407823,0.000176,2]
[393390130,1762572639437,-5300.0,0.000176,6]
[393390131,1762572639447,-1274.0,0.00017609,2]
[393390132,1762572639457,-5000.0,0.00017628,2]
[393390133,1762572639467,-184.74,0.00017678,2]
[393390134,1762572639477,-6600.0,0.000177,6]
[393390135,1762572639487,-1274.0,0.000177,2]
[393390136,1762572639502,-166.66,0.00017706,2]
[393390137,1762572639515,-500.0,0.00017727,2]
[393390138,1762572639525,-585.65,0.00017728,2]
[393390139,1762572639539,-906.58,0.00017728,2]
[393390140,1762572639548,-9999.99,0.00017728,2]
[393390141,1762572639559,-9999.99,0.00017728,2]
[393390142,1762572639569,-9999.99,0.00017728,2]
[393390143,1762572639582,-9999.99,0.00017728,2]
[393390144,1762572639591,-3186.41,0.00017728,2]
[393390145,1762572639601,-150.99,0.00017728,2]
[393390146,1762572639611,-751.18,0.00017774,2]
[393390147,1762572639623,-254.97811485,0.00017777,2]
[393390148,1762572639633,-1274.0,0.0001779,2]
[393390149,1762572639643,-1300.0,0.000178,6]
[393390150,1762572639653,-1274.0,0.00017812,2]
[393390151,1762572639664,-195.0,0.0001782,2]
[393390152,1762572639674,-620.07204538,0.0001782,2]
[393390153,1762572639684,-195.0,0.0001782,2]
[393390154,1762572639693,-252.09600473,0.0001782,2]
[393390155,1762572639703,-300.62272235,0.0001782,2]
[393390156,1762572639715,-250.0,0.0001782,2]
[393390157,1762572639725,-1274.0,0.00017828,2]
[393390158,1762572639736,-1274.0,0.00017841,2]
[393390159,1762572639747,-266.96082948,0.00017899,2]
[393390160,1762572639757,-150.0,0.00017899,2]
[393390161,1762572639766,-213.09177718,0.00017899,2]
[393390162,1762572639777,-150.0,0.00017899,2]
[393390163,1762572639787,-227.45604997,0.00017899,2]
[393390164,1762572639798,-150.0,0.00017899,2]
[393390165,1762572639809,-150.0,0.00017899,2]
[393390166,1762572639820,-150.0,0.00017899,2]
[393390167,1762572639830,-150.0,0.00017899,2]
[393390168,1762572639840,-158.74312142,0.00017899,2]
[393390169,1762572639851,-159.17244427,0.00017899,2]
[393390170,1762572639861,-156.38165633,0.00017899,2]
[393390171,1762572639873,-150.0,0.00017899,2]
[393390172,1762572639883,-155.28552746,0.00017899,2]
[393390173,1762572639893,-218.97846183,0.00017899,2]
[393390174,1762572639903,-150.4240917,0.00017899,2]
[393390175,1762572639915,-150.0,0.00017899,2]
[393390176,1762572639927,-500.0,0.00017899,2]
[393390177,1762572639937,-500.0,0.00017899,2]
[393390178,1762572639947,-500.0,0.00017899,2]
[393390179,1762572639957,-150.0,0.00017899,2]
[393390180,1762572639968,-500.0,0.00017899,2]
[393390181,1762572639978,-500.0,0.00017899,2]
[393390182,1762572639987,-500.0,0.00017899,2]
[393390183,1762572639997,-154.45775286,0.00017899,2]
[393390184,1762572640009,-500.0,0.00017899,2]
[393390185,1762572640019,-150.0,0.00017899,2]
[393390186,1762572640029,-150.0,0.00017899,2]
[393390187,1762572640040,-150.0,0.00017899,2]
[393390188,1762572640051,-150.0,0.00017899,2]
[393390189,1762572640062,-150.0,0.00017899,2]
[393390190,1762572640072,-500.0,0.00017899,2]